Cogmind - Beta 13 @@@ ROGUE MODE // 2024.04.22 @ 19:25:26 Player: Decinym Result: Destroyed by O7-Y9T(R) with Subdweller Laser Performance ------------- Evolutions (0) 0 Regions Visited (3) 600 Robots Destroyed (11) 55 Value Destroyed (222) 222 Prototype IDs (0) 0 Alien Tech Used (0) 0 Bonus (-1088) -1088 TOTAL SCORE: -211 Bonus ------- Friendly Fire -1088 Cogmind --------- Core Integrity 0/250 Matter 275/300 Energy 100/100 System Corruption 0% Temperature Cool (15) Movement Walking (120) Location -10/Subcaves Parts ------- > --- POWER (1) -------- (None) > --- PROPULSION (2) --- Aluminum Leg Aluminum Leg > --- UTILITY (2) ------ Small Storage Unit > --- WEAPON (2) ------- Particle Gun Grenade Launcher > --- INVENTORY (8) ---- Light Treads Light Treads Aluminum Leg Wheel Wheel Huge Storage Unit Small Laser Particle Gun Peak State ------------ > --- POWER ------------ Ion Engine > --- PROPULSION ------- Aluminum Leg Aluminum Leg > --- UTILITY ---------- Small Storage Unit > --- WEAPON ----------- Particle Gun Particle Gun > --- INVENTORY -------- Light Treads Light Treads Wheel Wheel Huge Storage Unit Small Laser [Rating: 8] Favorites ----------- Power Ion Engine Engine Ion Engine Propulsion Aluminum Leg Leg Aluminum Leg Utility Small Storage Unit Storage Small Storage Unit Weapon Particle Gun Energy Gun Particle Gun Ballistic Gun Light Assault Rifle Launcher Grenade Launcher Build | -11 -10 -10 -10 ------- Run | Yrd Mat Min Sub Slots Evolved . | . . . . Power . | . . . . Propulsion . | . . . . Utility . | . . . . Weapon . | . . . . Parts Attached 7 | . 1 5 1 Power 1 | . . 1 . Engine 1 | . . 1 . Core . | . . . . Reactor . | . . . . Propulsion 1 | . . 1 . Treads . | . . . . Leg 1 | . . 1 . Wheel . | . . . . Hover . | . . . . Flight . | . . . . Utility . | . . . . Device . | . . . . Storage . | . . . . Processor . | . . . . Hackware . | . . . . Protection . | . . . . Artifact . | . . . . Weapon 5 | . 1 3 1 Energy Gun 4 | . 1 3 . Energy Cannon . | . . . . Ballistic Gun . | . . . . Ballistic Cannon . | . . . . Launcher 1 | . . . 1 Special Weapon . | . . . . Impact Weapon . | . . . . Slashing Weapon . | . . . . Piercing Weapon . | . . . . Special Melee Weapon . | . . . . Unidentified Prototypes . | . . . . Parts Lost 4 | . 1 2 1 Power 2 | . . 1 1 Propulsion 1 | . . 1 . Utility . | . . . . Weapon 1 | . 1 . . Highest Loss Streak 1 | . 1 1 1 To Critical Strikes . | . . . . Average Slot Usage (%) 84 | . 85 84 85 Engine 13 | . 14 13 14 Leg 27 | . 28 27 28 Storage 14 | . 14 14 14 Energy Gun 22 | . 14 24 26 Ballistic Gun 4 | . 14 3 . Naked Turns . | . . . . Heaviest Build 16 | 13 13 16 14 Greatest Support 20 | 20 20 20 20 Greatest Overweight (x) . | . . . . Average Overweight (x) . | . . . . Largest Inventory Capacity 8 | . 8 8 8 Average Capacity 8 | . 8 8 8 Most Carried 8 | . 7 8 8 Average Carried 7 | . 6 7 8 Final Capacity 8 | 8 8 8 8 Final Carried 8 | 6 6 8 8 Class Distribution -------------------- 100% | Mutant Dominant Class ---------------- Mutant | -10/Materials Mutant | -10/Mines Mutant | -10/Subcaves Resources | -11 -10 -10 -10 ----------- Run | Yrd Mat Min Sub Matter Collected 277 | 200 14 63 . Remotely . | . . . . Salvage Created 403 | . 107 296 . Parts 21 | . 16 5 . Haulers Intercepted . | . . . . Recyclers Shooed . | . . . . Parts Field Recycled . | . . . . Retrieved Matter . | . . . . Parts Self-Destructed . | . . . . Prevented . | . . . . Kills | -11 -10 -10 -10 ------- Run | Yrd Mat Min Sub Combat Hostiles Destroyed 10 | . 6 4 . Guns 10 | . 6 4 . Classes Destroyed 2 | . 1 1 . Swarmer 6 | . 6 . . Grunt 4 | . . 4 . Best Kill Streak 6 | . 6 2 . Combat Bots Only 6 | . 6 2 . Max Kills in Single Turn 1 | . 1 1 . Gunslinging . | . . . . Exploded . | . . . . Melee . | . . . . Uniques/NPCs Destroyed 1 | . . 1 . YI-UF0 (-10/Mines) Combat | -11 -10 -10 -10 -------- Run | Yrd Mat Min Sub Hostile Shots Fired 74 | . 28 42 4 Missed 13 | . 5 8 . Damage Taken 778 | . 195 458 125 Core 264 | . 22 177 65 Absorbed by Shields . | . . . . Core Remaining (%) 100 | 100 . . . Volleys Fired 58 | . 9 47 2 Largest 2 | . 2 2 1 Hottest 85 | . 60 85 30 Shots Fired 86 | . 17 67 2 Gun 84 | . 17 67 . Cannon . | . . . . Launcher 2 | . . . 2 Special . | . . . . Kinetic 30 | . 9 21 . Thermal 48 | . 2 46 . Explosive 2 | . . . 2 Electromagnetic 6 | . 6 . . Robot Hit Streak 13 | . 7 13 10 Robot Miss Streak 3 | . 2 3 . Penetration Max . | . . . . Secondary Targets 2 | . 1 1 . Max Gunslinging Chain 1 | . 1 1 . Shots Hit Robots 62 | . 11 49 2 Core Hits 25 | . 6 18 1 Critical Kills . | . . . . Critical Parts Destroyed . | . . . . Critical Strikes 1 | . . 1 . Burn 1 | . . 1 . Melee Attacks . | . . . . Impact . | . . . . Slashing . | . . . . Piercing . | . . . . Sneak Attacks . | . . . . Combat Hostiles . | . . . . Follow-up Attacks . | . . . . Damage Inflicted 722 | . 107 492 123 Guns 599 | . 107 492 . Cannons . | . . . . Explosions 123 | . . . 123 Melee . | . . . . Ramming . | . . . . Kinetic 162 | . 43 119 . Thermal 395 | . 22 373 . Explosive 123 | . . . 123 Electromagnetic 42 | . 42 . . Impact . | . . . . Slashing . | . . . . Piercing . | . . . . Highest Corruption . | . . . . Average Corruption . | . . . . Corruption Purged . | . . . . Corruption Blocked . | . . . . Overload Shots . | . . . . Overflow Damage . | . . . . Projectiles . | . . . . Explosions . | . . . . Melee . | . . . . Knockbacks . | . . . . Impact . | . . . . Kinetic . | . . . . Secondary . | . . . . Self-Inflicted Damage 30 | . . . 30 Shots 2 | . . . 2 Rammed . | . . . . Targets Rammed . | . . . . Kicked . | . . . . Crushed . | . . . . Highest Temperature 312 | . 20 312 . Average Temperature 105 | . 15 123 . Received Heat Transfer 288 | . . 258 30 Siege Activations . | . . . . Robots Corrupted . | . . . . Combat Hostiles . | . . . . Parts Fried . | . . . . Impact Corruptions . | . . . . Robots Melted . | . . . . Combat Hostiles . | . . . . Parts Melted . | . . . . Heat Transferred 996 | . 50 946 . Parts Sabotaged . | . . . . Parts Stolen . | . . . . Parts Stripped . | . . . . Power Chain Reactions . | . . . . Alert | -11 -10 -10 -10 ------- Run | Yrd Mat Min Sub Peak Influence 172 | . 172 146 . Initial 66 | . . 66 . Average 93 | . 88 94 . Maximum Alert Level . | . . . . Low Security (%) 100 | . 100 100 . Level 1 . | . . . . Level 2 . | . . . . Level 3 . | . . . . Level 4 . | . . . . Level 5 . | . . . . High Security . | . . . . Max Security . | . . . . Squads Dispatched 1 | . 1 . . Investigation 1 | . 1 . . Extermination . | . . . . Reinforcement . | . . . . Assault . | . . . . Garrison . | . . . . Intercept . | . . . . Searches Triggered . | . . . . Construction Impeded . | . . . . Haulers Reinforced . | . . . . Active Scanning Responses . | . . . . Cargo Convoy Interrupts . | . . . . Stealth | -11 -10 -10 -10 --------- Run | Yrd Mat Min Sub Distress Signals 1 | . 1 . . Communications Jammed . | . . . . Distress Signals . | . . . . Times Spotted 13 | . 7 4 2 Peak Tracking Total 6 | . 6 2 2 Tactical Retreats 1 | . 1 . . Traps | -11 -10 -10 -10 ------- Run | Yrd Mat Min Sub Traps Triggered 1 | . 1 . . Indirectly . | . . . . Trap Hack Attempts . | . . . . Triggered . | . . . . Disarmed . | . . . . Reprogrammed . | . . . . Reused . | . . . . Traps Extracted . | . . . . Installed . | . . . . Triggered . | . . . . Machines | -11 -10 -10 -10 ---------- Run | Yrd Mat Min Sub Machines Disabled . | . . . . Max in Single Turn . | . . . . Machines Repaired . | . . . . Machines Dismantled . | . . . . Machines Sabotaged . | . . . . Overloaded Fab Kills . | . . . . Hacking | -11 -10 -10 -10 --------- Run | Yrd Mat Min Sub Machines Accessed 2 | . 2 . . Terminals 2 | . 2 . . Fabricators . | . . . . Repair Stations . | . . . . Recycling Units . | . . . . Scanalyzers . | . . . . Garrison Access . | . . . . Total Hacks 5 | . 5 . . Successful 2 | . 2 . . Failed 3 | . 3 . . Catastrophic . | . . . . Database Lockouts . | . . . . Manual 5 | . 5 . . Terminals 5 | . 5 . . Fabricators . | . . . . Repair Stations . | . . . . Recycling Units . | . . . . Scanalyzers . | . . . . Garrison Access . | . . . . Terminal Hacks 1 | . 1 . . Branch Access Points 1 | . 1 . . Fabricator Hacks . | . . . . Repair Station Hacks . | . . . . Recycling Unit Hacks . | . . . . Scanalyzer . | . . . . Garrison Access Hacks . | . . . . Unauthorized Hacks 1 | . 1 . . Terminals 1 | . 1 . . Botnet 1 | . 1 . . Fabricators . | . . . . Repair Stations . | . . . . Recycling Units . | . . . . Scanalyzers . | . . . . Garrison Access . | . . . . Data Cores Recovered . | . . . . Used . | . . . . Hacking Detections 2 | . 2 . . Full Trace Events . | . . . . Feedback Events . | . . . . Feedback Blocked . | . . . . Robot Schematics Acquired . | . . . . Robots Built . | . . . . Authchips . | . . . . Time . | . . . . Total Robot Build Rating . | . . . . Part Schematics Acquired . | . . . . Parts Built . | . . . . Authchips . | . . . . Time . | . . . . Total Part Build Rating . | . . . . Parts Repaired . | . . . . Time . | . . . . Parts Recycled . | . . . . Recycled Matter . | . . . . Retrieved Matter . | . . . . Retrieved Components . | . . . . Parts Scanalyzed . | . . . . Part Schematics Acquired . | . . . . Parts Damaged . | . . . . Bothacking | -11 -10 -10 -10 ------------ Run | Yrd Mat Min Sub Used RIF Installer . | . . . . Robots Hacked . | . . . . Non-combat . | . . . . Combat . | . . . . Robot Hacks Applied . | . . . . Relay Couplers Released . | . . . . Fabnet Peak Effective % . | . . . . Robots Rewired . | . . . . Allies Hacked . | . . . . Hacks Repelled . | . . . . Allies | -11 -10 -10 -10 -------- Run | Yrd Mat Min Sub Total Allies . | . . . . Largest Group . | . . . . Highest-Rated Group . | . . . . Highest-Rated Ally . | . . . . Total Orders . | . . . . Ally Attacks . | . . . . Total Damage . | . . . . Kills . | . . . . Allies Corrupted . | . . . . Allies Melted . | . . . . Intel | -11 -10 -10 -10 ------- Run | Yrd Mat Min Sub Robot Analysis Total . | . . . . Derelict Logs Recovered 2 | . . 1 1 Drone Launches . | . . . . Drone Recoveries . | . . . . Exploration | -11 -10 -10 -10 ------------- Run | Yrd Mat Min Sub Turns Passed 774 | . 125 544 105 Spaces Moved 506 | 1 83 340 82 Core . | . . . . Treads . | . . . . Legs 506 | 1 83 340 82 Wheels . | . . . . Hover . | . . . . Flight . | . . . . Fastest Speed 120 | 120 120 120 120 Average Speed 120 | 120 120 120 120 Slowest Speed 120 | 120 120 120 120 Overloaded Moves . | . . . . Propulsion Burnouts . | . . . . Robots Hopped . | . . . . Cave-ins Triggered . | . . . . Exploration Rate (%) 25 | 2 21 69 10 Regions Visited 3 Branch Regions 2 Pre-discovered Areas 1 | . . . 1 Known Exits Taken 1 | . 1 . . Unknown Exits Taken 2 | 1 . 1 . Scrap Searched 1 | . . 1 . Spaces Dug . | . . . . Terrain Destroyed 10 | . . . 10 Melee . | . . . . Projectile . | . . . . AOE 10 | . . . 10 Terrain Rammed . | . . . . Walls Destroyed . | . . . . Machines Disabled . | . . . . Actions | -11 -10 -10 -10 --------- Run | Yrd Mat Min Sub Total 592 | . 93 412 87 Wait 18 | . . 16 2 Move 503 | . 82 339 82 Hop . | . . . . Pick Up 5 | . 1 4 . Fast Attach 1 | . . 1 . Attach 3 | . 1 2 . Detach . | . . . . Swap 3 | . . 2 1 Drop 1 | . . 1 . Fire 58 | . 9 47 2 Melee . | . . . . Ram . | . . . . Kick . | . . . . Crush . | . . . . Escape Stasis . | . . . . Rewire . | . . . . Trap . | . . . . Miscellaneous . | . . . . Route ------- -11/Scrapyard -10/Materials -10/Mines (discovered 3 exits: [*Mat x2] / [*Sub]) -10/Subcaves History --------- Turn | Location | Event 1 | -11/Scrapyard | Discovered new exit (range 0) 1 | -11/Scrapyard | Entered Materials 89 | -10/Materials | Identified exit to Mines 126 | -10/Materials | Entered Mines 149 | -10/Mines | Core integrity fell below 50% 193 | -10/Mines | Learned location of 1 exit from Materials 228 | -10/Mines | Discovered new exit (range 6) 318 | -10/Mines | Build established: Mutant 399 | -10/Mines | YI-UF0 nonchalantly dropped a Grenade Launcher on the ground 474 | -10/Mines | Murdered YI-UF0 474 | -10/Mines | Destroyed YI-UF0 595 | -10/Mines | Discovered new exit (range 9) 668 | -10/Mines | Discovered new exit (range 3) 670 | -10/Mines | Entered Subcaves 678 | -10/Subcaves | Learned Materials security intel 687 | -10/Subcaves | Learned location of Zion (-6) 687 | -10/Subcaves | Met a Zionite searching for "candidates" 773 | -10/Subcaves | Core integrity fell below 20% 775 | -10/Subcaves | Destroyed by O7-Y9T(R) with Subdweller Laser Last Messages --------------- 00447_ T-07 Excavator is excavating. 00447_ U-05 Engineer lays Concrete. 00474_ YI-UF0 destroyed. 00478_ Acquired 10 matter. 00487_ K-01 Serf collects debris. 00595_ EXIT=FOUND 00667_ U-05 Engineer lays Concrete. 00668_ EXIT=FOUND LOCATION=UNKNOWN AMBIENT_HEAT=-10 GOAL=ESCAPE 00671_ TV-LAR(z): "She is not going to be happy we haven't found any suitable candidates yet." 00678_ Acquired derelict log, extracted data. Data stored: Materials security intel. 00687_ TV-LAR(z): "Hey you! It's really dangerous down here, I feel that you could die at any moment. For your health and safety might I suggest a trip to Zion?" World map updated: -6/Zion. 00773_ Ion Engine destroyed. Map ----- +----------------------------------------------------+ | ??????????????????????????????????? | | ???????????????????????????????????????## | | ???????????????????????????????????????# | | ???????????????#####???????????????????# | | ??????????????## ##?????########?????# | | ??????????????# #?????# #?????# | | ??????????????## ####### ####??# | | ???????????????## ## ### ##?# | | ????????????????## ## # #### | | ?????????????????## ### ### ## | | ??????????????????# ## ### ### | | ??????????????????## #?## ## | | ???????????????????## ##?# | | ???????????????????## ### | | ???????????????????# ## | | ??????????????????## ##### | | ?????????????????## ## ##???#### | | ?????????????????# ###### #???????## # | | ?????????????????# ##????# #???????# # | | ????????????????## ##????# #?????? # | | ???????????????## ##???? #????? # | | ???????????????# ##??? ???? ## | | ??????????????# ## #??? ?? ##? | | ??????????????####?## #??? # # ? #??? | | ????????????????##### ##??? #####??#???? | | ???????????????## @ ###???? ??????????? | | ??????????????# #?????? ??????????? | | ??????????????# #??????? ????????????? | | ??????????????## R # ????????? | | ??????????????# R ????????? | | ??????????????# ????????? | | ??????????????## ????????? | | ???????????????### ?????????? | | ?????????????????### ?????????? | | ???????????????????? ######??????????? | | ???????????????????? ##???????????????? | | ???????????????????? #????????????????? | | ???????????????????? #????????????????? | | ???????????????????? #????????????????? | | ????????????????????? #????????????????? | | ????????????????????? ##????????????????? | | ?????????????????????? ##?????????????????? | | ??????????????????????#???????????????????? | | ??????????????????????????????????????????? | | ??????????????????????????????????????????? | | ??????????????????????????????????????????? | | ??????????????????????????????????????????? | | ??????????????????????????????????????????? | | ??????????????????????????????????????????? | | ??????????????????????????????????????????? | +----------------------------------------------------+ Best States ------------- Heat Dissipation 25 Energy Generation 10 Energy Capacity 250 Matter Stores 300 Matter Capacity 300 Sight Range 16 Terrain Scan Density 10 Evasion (%) 55 Item Schematics ----------------- None Robot Schematics ------------------ None Fabricated ------------ Nothing Alien Tech Used ----------------- None Achievements -------------- None Challenges ------------ None Game ------ Seed FusionWarpBarrier Manual? 0 Play Time 00:05:27 Cumulative 378.9 hours Start 2024.04.22 @ 19:20:31 End 2024.04.22 @ 19:25:26 Sessions 1 Manual Loads 0 Difficulty Rogue Special Mode None Game No. 395 Rogue 395 Adventurer 0 Explorer 0 Win Type - Total 29 Types 16/3/4/1/2/0/3/0/0 Lore% 87 Gallery% 88 Achievement% 82 Wizard Run 0 Options --------- Layout 0 ASCII 0 Keyboard 0 Movement Arrows Keybinds 0 Fullscreen 2 Font 24/Smallcaps Map View 76x50 Zoom Use 0% Tactical HUD 1 Map Filters NONE Filters NONE Steam 1 RUN: f25133e8-91f8-4d21-a1a1-0ac3926d2bcc